[Event "Italian-ch Semifinal 2022"]
[Site "Acqui Terme"]
[Date "2022.06.18"]
[Round "8.1"]
[White "Pasini, Nicolo"]
[Black "Barp, Alberto"]
[Result "0-1"]
[ECO "B43"]
[WhiteElo "2227"]
[BlackElo "2384"]
[Annotator "TA"]
[PlyCount "36"]
[EventDate "2022.06.15"]
[EventType "swiss"]
[EventCountry "ITA"]
[SourceTitle "playchess.com"]
[Source "ChessBase"]
[SourceQuality "1"]
[TimeControl "40/5400+30:1800+30"]

{[%evp 15,36,-20,-20,-47,-58,-44,-43,-45,-52,-117,-126,-521,-519,-1013,-1007,-998,-998,-1176,-1191,-1181,-1183,-1160,-1154]} 1. e4 {[%emt 1:31:00]} c5 {[%emt 0:04:09]} 2. Nc3 {[%emt 0:00:00]} e6 {[%emt 0:02:14]} 3. Nge2 {[%emt 0:00:00]} a6 {[%emt 0:00:16]} 4. g3 {[%emt 0:00:00]} b5 {[%emt 0:00:03][%cal Bb7b5,Bb5b4][%mdl 32]} 5. Bg2 {[%emt 0:00:00]} Bb7 {[%emt 0:00:04]} 6. d4 {[%emt 0:00:00]} cxd4 {[%emt 0:02:00]} 7. Nxd4 {[%emt 0:00:00]} Nf6 {[%emt 0:00:11]} 8. O-O {[%emt 0:00:00]} b4 {[%emt 0:00:20]} 9. Nd5 {[%emt 0:00:00] B43: Sicilian: Kan Variation: 5 Nc3.} exd5 {[%emt 0:00:11]} 10. exd5 {[%emt 0:00:00] [#] Threatens to win with Re1+.} Bc5 $1 {[%emt 0:00:06] Strongly threatening ...0-0.} (10... Bxd5 $2 11. Re1+ (11. Bg5 Bxg2 12. Re1+ Be7 $14) 11... Be6 12. Bxa8 $18) (10... Be7 $2 11. Nf5 d6 12. Re1 $18) 11. Re1+ {[%emt 0:00:00] Black is slightly better.} Kf8 {[%emt 0:01:22][%cal Be8f8,Bf8g7,Bg7h6,Bh6g6,Bg6g7][%mdl 32]} 12. Nf5 {[%emt 0:00:00]} (12. a3 $15) 12... d6 {[%emt 0:00:29] [#]} 13. Nxg7 $146 {[%emt 0:00:00][%mdl 8192]} ({Predecessor:} 13. a3 bxa3 14. bxa3 Nbd7 15. Rb1 Rb8 16. Bf4 Qc7 17. Qd2 h6 18. Nxh6 g6 19. Bg5 {1-0 (33) Raja,H (2472)-Golizadeh,A (2455) Chess.com INT 2020}) 13... Kxg7 $19 {[%emt 0:08:26] Black is clearly winning.} 14. Bh6+ {[%emt 0:00:00]} (14. b3 $142) 14... Kxh6 {[%emt 0:00:17]} 15. Qd2+ {[%emt 0:00:00]} Kg6 {[%emt 0:01:25]} ({Stronger than} 15... Kg7 16. Qg5+ Kf8 17. Qh6+ Kg8 18. Qg5+ Kf8 19. Qh6+ Kg8 20. Qg5+ Kf8 $11) 16. Be4+ {[%emt 0:00:00]} Nxe4 {[%emt 0:02:03]} 17. Rxe4 {[%emt 0:00:00]} Qg5 {[%emt 0:06:53]} 18. Qd3 {[%emt 0:00:00]} Kg7 {[%emt 0:01:31] White got outplayed after the opening.  Weighted Error Value: White=1.51/Black=0.00 (flawless)} 0-1

[Event "Italian-ch Semifinal 2022"]
[Site "Acqui Terme"]
[Date "2022.06.18"]
[Round "8.2"]
[White "Lettieri, Giuseppe"]
[Black "Lumachi, Gabriele"]
[Result "1-0"]
[ECO "C54"]
[WhiteElo "2445"]
[BlackElo "2347"]
[Annotator "TA"]
[PlyCount "67"]
[EventDate "2022.06.15"]
[EventType "swiss"]
[EventCountry "ITA"]
[SourceTitle "playchess.com"]
[Source "ChessBase"]
[SourceQuality "1"]
[TimeControl "40/5400+30:1800+30"]

{[%evp 17,67,0,0,5,8,12,3,0,0,0,30,29,36,37,32,19,16,26,14,16,14,12,23,14,16,16,35,-15,-9,0,0,0,0,0,0,-39,0,-87,0,0,104,80,358,359,316,329,653,626,817,797,815,777]} 1. e4 {[%emt 0:00:02]} e5 {[%emt 0:00:14]} 2. Nf3 {[%emt 0:00:09]} Nc6 {[%emt 0:00:08]} 3. Bc4 {[%emt 0:00:07]} Bc5 {[%emt 0:00:45]} 4. c3 {[%emt 0:00:10][%cal Bc2c3,Bc3d4][%mdl 32]} Nf6 {[%emt 0:00:30]} 5. d4 {[%emt 0:00:05]} exd4 {[%emt 0:00:10]} 6. e5 {[%emt 0:00:14]} d5 {[%emt 0:00:28]} 7. Bb5 {[%emt 0:00:19]} Ne4 {[%emt 0:00:27]} 8. cxd4 {[%emt 0:00:08]} Bb6 {[%emt 0:00:07]} 9. Nc3 {[%emt 0:00:58]} O-O {[%emt 0:06:55]} 10. Be3 {[%emt 0:00:40] C54: Giuoco Piano: 4 c3 Nf6, main lines with 5 d4 and 5 d3.} Bg4 {[%emt 0:00:18]} 11. h3 {[%emt 0:00:10]} Bh5 {[%emt 0:00:05]} 12. Qc2 {[%emt 0:00:22] The position is equal.} Ba5 {[%emt 0:00:09] 12...Nxc3 is the modern continuation.} 13. O-O {[%emt 0:01:27]} Bxc3 {[%emt 0:06:00]} 14. bxc3 {[%emt 0:00:25]} Bxf3 {[%emt 0:00:07]} 15. gxf3 {[%emt 0:00:05]} Ng5 {[%emt 0:00:11]} 16. Kg2 {[%emt 0:02:10] Black must now prevent f4.} Ne6 {[%emt 0:00:47]} 17. f4 {[%emt 0:00:15] Hoping for f5.} f5 {[%emt 0:02:25]} 18. Qa4 {[%emt 0:00:16]} Qh4 {[%emt 0:05:38]} 19. Bxc6 {[%emt 0:00:49]} bxc6 {[%emt 0:00:06]} 20. Qxc6 {[%emt 0:00:14]} Rae8 {[%emt 0:00:06]} 21. Qxd5 {[%emt 0:14:26]} g5 $1 {[%emt 0:00:14] [#]} 22. Rg1 $146 {[%emt 0:36:55]} (22. fxg5 $14 f4 23. Bc1) ({Predecessor:} 22. f3 Kh8 23. Kh2 Rb8 24. Qxe6 Rb2+ 25. Rf2 Rxf2+ 26. Bxf2 Qxf2+ 27. Kh1 Qxf3+ 28. Kh2 Qxf4+ {0-1 (37) Pichot,A (2630)-So,W (2770) chess24.com INT 2021}) 22... gxf4 $11 {[%emt 0:01:49] Strongly threatening ...Kh8.} 23. Kf1+ {[%emt 0:05:42][%cal Bg2f1,Bf1e2,Be2d3,Bd3e4][%mdl 32]} Kh8 {[%emt 0:00:12]} 24. Bd2 {[%emt 0:00:09]} c5 {[%emt 0:08:03]} 25. Rb1 $36 {[%emt 0:12:10][%mdl 2048] White has some pressure. Active counter play!} (25. dxc5 $2 Rd8 26. Qxe6 Rxd2 $19) 25... Qh6 {[%emt 0:07:45]} 26. Rb7 {[%emt 0:10:07]} (26. dxc5 $2 Rd8 27. Qg2 Rxd2 $19) 26... Rd8 {[%emt 0:02:18][%mdl 1024] Black has compensation.} 27. Rd7 {[%emt 0:01:49]} (27. Qf3 $11 cxd4 28. Rg2 (28. Rxa7 Rb8 $15)) 27... Rb8 {[%emt 0:01:51]} (27... Rxd7 $17 28. Qxd7 cxd4) 28. Ke2 {[%emt 0:06:21]} f3+ {[%emt 0:39:09]} (28... cxd4 $11 {keeps the balance.} 29. cxd4 Rb2) 29. Kd3 {[%emt 0:02:10] Chess con chili.} (29. Kxf3 Qh5+ 30. Kg2 Rg8+ 31. Kh2 Rxg1 32. Kxg1 Qxh3 $1 33. Rd8+ Nxd8 $19) 29... f4 $2 {[%emt 0:02:53][%mdl 8192] Black cannot hold the game after this.} (29... Qh4 $16 {was necessary.} 30. Be3 (30. Qxe6 c4+ 31. Kxc4 Rfc8+) (30. Qxf3 cxd4 31. cxd4 Rb2 $14) 30... Rb2) 30. Rd6 $18 {[%emt 0:01:35]} ({Don't go for} 30. Rxa7 $2 Qxh3 31. Re1 (31. Qe4 $2 cxd4 32. cxd4 Rbd8 $19) 31... Rbd8 $19) ({Worse is} 30. Qxf3 {[#]} Nxd4 $1 31. Qg4 (31. cxd4 $2 Qa6+ 32. Kc2 Qxa2+ 33. Kd1 Rb1+ 34. Ke2 Rxg1 $19) 31... Rg8 $17) 30... Rfe8 {[%emt 0:02:04]} 31. Qxf3 {[%emt 0:00:43] Threatens to win with d5.} Rb2 $2 {[%emt 0:04:09]} (31... Rbd8 32. Qg4 Rg8 33. Rxd8 Rxd8) 32. Bc1 {[%emt 0:01:23] White is clearly winning.} Rxa2 {[%emt 0:01:29]} 33. Qg4 {[%emt 0:00:32][%cal Od6e6] White threatens Rxe6! and mate.} c4+ {[%emt 0:04:13]} 34. Ke4 {[%emt 0:01:35] Weighted Error Value: White=0.15 (very precise) /Black=0.47} 1-0

[Event "Italian-ch Semifinal 2022"]
[Site "Acqui Terme"]
[Date "2022.06.18"]
[Round "8.3"]
[White "Carnicelli, Valerio"]
[Black "Boraso, Alessio"]
[Result "1-0"]
[ECO "B45"]
[WhiteElo "2319"]
[BlackElo "2287"]
[Annotator "TA"]
[PlyCount "103"]
[EventDate "2022.06.15"]
[EventType "swiss"]
[EventCountry "ITA"]
[SourceTitle "playchess.com"]
[Source "ChessBase"]
[SourceQuality "1"]
[TimeControl "40/5400+30:1800+30"]

{[%evp 12,103,29,34,26,20,42,38,35,40,40,40,40,40,30,36,33,31,38,16,31,22,56,0,4,0,0,-12,-14,-6,-3,-8,21,8,30,19,87,74,105,78,168,106,110,102,110,116,114,77,88,78,81,73,90,100,186,195,278,287,275,289,286,288,285,273,330,334,305,289,314,268,318,331,297,296,335,335,334,331,328,319,320,320,331,322,318,320,314,309,306,281,579,543,1914,1356]} 1. e4 {[%emt 0:00:06]} c5 {[%emt 0:02:40]} 2. Nf3 {[%emt 0:00:06][%cal Bg1f3,Bf3d4,Bd4b5,Bb5c7][%mdl 32]} e6 {[%emt 0:00:30]} 3. d4 {[%emt 0:00:04]} cxd4 {[%emt 0:00:08]} 4. Nxd4 {[%emt 0:00:05]} Nf6 {[%emt 0:00:18]} 5. Nc3 {[%emt 0:00:07]} Nc6 {[%emt 0:00:09]} 6. Ndb5 {[%emt 0:00:05]} Bc5 {[%emt 0:00:27]} 7. Bf4 {[%emt 0:00:09] Nc7+ is the strong threat.} O-O {[%emt 0:00:13] B45: Sicilian Four Knights.} 8. Bc7 {[%emt 0:00:05]} Qe7 {[%emt 0:00:18] aiming for ...d5.} 9. Bd6 $1 {[%emt 0:00:05]} Bxd6 {[%emt 0:00:18] White is slightly better.} 10. Qxd6 {[%emt 0:00:06]} Qd8 {[%emt 0:00:19]} 11. Nc7 {[%emt 0:00:31]} Rb8 {[%emt 0:01:17][%cal Ob7b5]} 12. Be2 {[%emt 0:00:13]} b5 {[%emt 0:01:01]} 13. e5 {[%emt 0:00:37]} ({And not} 13. Bxb5 Rb7 14. e5 (14. Bxc6 $2 dxc6 15. Qxd8 Rxd8 $17) 14... Nh5 15. Bxc6 dxc6 16. Qxd8 Rxd8 $17) 13... Ne8 {[%emt 0:01:02]} 14. Nxe8 {[%emt 0:00:07]} Rxe8 {[%emt 0:00:10]} 15. O-O {[%emt 0:02:14]} ({Much weaker is} 15. Bxb5 Qa5 16. Bxc6 Rxb2 $15) 15... b4 {[%emt 0:00:44]} 16. Ne4 {[%emt 0:00:08]} Bb7 {[%emt 0:02:01]} 17. Nc5 {[%emt 0:23:03]} (17. Qc5 $14) 17... Ne7 $11 {[%emt 0:12:09]} 18. Nxb7 {[%emt 0:19:30]} (18. Bd3 {looks sharper.} Nd5 19. Rfe1 a5 20. Nxb7 Rxb7 21. Be4) 18... Rxb7 {[%emt 0:00:13] [#]} 19. Rad1 $146 {[%emt 0:01:15][%cal Ba1d1,Bd1d4,Bd4b4][%mdl 32]} ({Predecessor:} 19. Rfd1 Nf5 20. Qd2 Qc7 21. Bf3 Rbb8 22. Re1 Rb5 23. Rac1 Rxe5 24. Qxb4 Rb8 25. Qa3 {0-1 (34) Mammadzada,G (2459)-Yoo,C (2466) chess24.com INT 2021}) 19... Qa5 {[%emt 0:16:35]} 20. Bf3 {[%emt 0:09:09]} Rc7 {[%emt 0:01:25]} 21. Be4 $36 {[%emt 0:01:24][%mdl 2048] White is more active.} Ng6 {[%emt 0:11:35]} 22. f4 {[%emt 0:02:15]} Rec8 {[%emt 0:22:13]} 23. Rd4 {[%emt 0:02:45]} Qxa2 {[%emt 0:03:56]} (23... Rc4 $11 {keeps the balance.}) 24. Rxb4 $16 {[%emt 0:02:16] Black must now prevent Bb7.} a5 {[%emt 0:02:06]} 25. Rb6 {[%emt 0:10:14] Threatens to win with Bb7.} Qa4 {[%emt 0:02:00]} (25... Qc4 $16 26. Bd3 Qc5+ 27. Qxc5 Rxc5) 26. Bd3 {[%emt 0:01:03]} (26. Bb7 $18) 26... Rc6 {[%emt 0:02:47]} (26... Nxf4 $2 27. Qxc7 $3 {[%mdl 512]} Nh3+ 28. gxh3 $18) 27. Qxd7 {[%emt 0:02:48]} Nf8 {[%emt 0:00:33] [#]} 28. Rxc6 $1 {[%emt 0:00:15] White is much more active.} Rxc6 {[%emt 0:01:01]} 29. Qe8 {[%emt 0:05:44] And now c3 would win.} Qd4+ {[%emt 0:01:23]} 30. Kh1 {[%emt 0:00:05]} Rc7 {[%emt 0:01:40]} 31. b3 {[%emt 0:01:05]} Rd7 {[%emt 0:03:47]} 32. Qa8 {[%emt 0:01:59]} Rd5 {[%emt 0:01:07]} (32... Qc5 $16 33. g3 Ra7) 33. Bc4 $1 $18 {[%emt 0:03:23]} Rc5 {[%emt 0:00:36] [#]} (33... Rd7 $142 34. Qxa5 h6) 34. f5 $1 {[%emt 0:01:46] Intending fxe6 and mate.} Rxc4 {[%emt 0:07:25]} 35. bxc4 {[%emt 0:00:04]} Qxc4 {[%emt 0:01:41][%cal Rc4f1][%mdl 4096] Endgame [#] KQR-KQN} 36. Qf3 {[%emt 0:00:47]} exf5 {[%emt 0:01:30]} 37. Qxf5 {[%emt 0:00:05]} g6 {[%emt 0:00:34]} 38. Qf4 {[%emt 0:02:56]} Qe6 {[%emt 0:01:06]} 39. Qf6 {[%emt 0:02:23]} Qd7 {[%emt 0:00:30]} 40. Qf3 {[%emt 0:00:00]} Qc7 {[%emt 0:00:00]} 41. Qd5 {[%emt 0:07:52]} Ne6 {[%emt 0:02:36]} 42. c4 {[%emt 0:03:59]} Qa7 {[%emt 0:02:07]} 43. Ra1 {[%emt 0:14:28]} a4 {[%emt 0:00:54]} 44. Qb5 {[%emt 0:02:07]} a3 {[%emt 0:05:46]} 45. Qb3 {[%emt 0:02:05]} Qd4 {[%emt 0:03:22]} 46. Rxa3 {[%emt 0:01:32]} ({Don't play} 46. Qxa3 Qxe5 47. Qa7 Qf5 $18) 46... Qxe5 {[%emt 0:03:58][%cal Re5e1]} 47. Qd1 {[%emt 0:00:41] Against Qe1+} Qe4 {[%emt 0:01:25]} 48. Rc3 {[%emt 0:01:44]} Nc5 {[%emt 0:03:04]} 49. h3 {[%emt 0:00:30]} Qe5 {[%emt 0:01:03]} 50. Ra3 {[%emt 0:01:13]} Qf4 $2 {[%emt 0:04:42]} (50... Ne4 51. Qd5 Qxd5 52. cxd5 Kg7) 51. Qa1 {[%emt 0:00:36] White threatens Ra8+ and mate.} f6 {[%emt 0:00:25]} 52. Ra8+ {[%emt 0:01:06] Weighted Error Value: White=0.07 (flawless) /Black=0.24 (precise)} 1-0

[Event "Italian-ch Semifinal 2022"]
[Site "Acqui Terme"]
[Date "2022.06.18"]
[Round "8.4"]
[White "Cina`, Vittorio"]
[Black "Palozza, Christian"]
[Result "1/2-1/2"]
[ECO "A14"]
[WhiteElo "2027"]
[BlackElo "2284"]
[Annotator "TA"]
[PlyCount "135"]
[EventDate "2022.06.15"]
[EventType "swiss"]
[EventCountry "ITA"]
[SourceTitle "playchess.com"]
[Source "ChessBase"]
[SourceQuality "1"]
[TimeControl "40/5400+30:1800+30"]

{[%evp 20,135,20,0,0,7,31,0,0,-10,-16,-12,0,0,3,12,10,0,0,-56,-9,-72,-29,-17,0,-38,-44,-39,-50,-39,-48,-49,-58,-53,0,0,0,0,0,-20,-11,-12,0,-4,118,0,13,-8,0,0,0,0,0,0,0,0,0,-3,-3,-3,-3,-3,-3,-3,-3,-3,0,-54,0,0,0,-16,0,0,0,0,0,0,0,0,0,0,0,0,0,0,0,0,0,0,0,0,0,0,0,0,0,0,0,0,0,0,0,0,0,0,0,0,0,0,0,0,0,0,0,0,0,0]} 1. Nf3 {[%emt 0:00:05]} Nf6 {[%emt 0:00:06]} 2. b3 {[%emt 0:00:06]} d5 {[%emt 0:00:20]} 3. Bb2 {[%emt 0:00:13]} e6 {[%emt 0:00:06]} 4. g3 {[%emt 0:00:13]} Be7 {[%emt 0:02:53]} 5. Bg2 {[%emt 0:00:09]} O-O {[%emt 0:00:14]} 6. O-O {[%emt 0:00:07]} b6 {[%emt 0:00:11]} 7. c4 {[%emt 0:02:08]} c5 {[%emt 0:00:34]} 8. cxd5 {[%emt 0:02:13]} Nxd5 {[%emt 0:00:12]} 9. d4 {[%emt 0:01:37]} Bb7 {[%emt 0:01:33]} 10. Nbd2 {[%emt 0:02:58]} Nd7 {[%emt 0:03:03]} 11. Rc1 {[%emt 0:04:34]} Rc8 {[%emt 0:01:15] A14: English Opening: 1...e6 with b3 by White.} 12. Nc4 {[%emt 0:05:04]} Rc7 {[%emt 0:22:25]} 13. Re1 {[%emt 0:12:46]} N5f6 {[%emt 0:02:43] [#]} 14. Nfe5 $146 {[%emt 0:07:47]} ({Predecessor:} 14. a3 Qa8 15. Nh4 Rd8 16. e3 cxd4 17. exd4 Nd5 18. Nf3 Rdc8 19. Qd2 N5f6 20. Qf4 {0-1 (33) Koepf,R (1965)-Neuberger,D (2040) Bayern 1998}) 14... Bxg2 {[%emt 0:05:41]} 15. Kxg2 {[%emt 0:00:08]} Nxe5 {[%emt 0:00:05]} 16. dxe5 {[%emt 0:10:40]} Qa8+ {[%emt 0:06:45]} 17. e4 {[%emt 0:05:26]} Rd8 {[%emt 0:01:34]} 18. Qf3 {[%emt 0:03:02]} Ne8 {[%emt 0:01:47]} 19. Qf4 {[%emt 0:12:53]} (19. Red1 $11) 19... Rcd7 {[%emt 0:06:29]} (19... b5 $15 {should be considered.} 20. Ne3 Rcd7) 20. Rc3 {[%emt 0:01:57]} (20. a4 $1 $11) 20... Bf8 {[%emt 0:07:21]} 21. a4 {[%emt 0:05:47]} Qb7 {[%emt 0:01:39]} 22. g4 {[%emt 0:02:42]} a6 {[%emt 0:05:25]} 23. Rh3 $1 {[%emt 0:04:00]} b5 {[%emt 0:01:50]} 24. axb5 {[%emt 0:01:37]} axb5 {[%emt 0:00:02]} 25. Nd6 {[%emt 0:02:30]} Nxd6 {[%emt 0:10:24]} 26. exd6 {[%emt 0:00:08]} f6 {[%emt 0:00:18]} ({Black should play} 26... Rxd6 $15 27. Ree3 f6) 27. g5 $11 {[%emt 0:02:17]} fxg5 {[%emt 0:00:01]} (27... Bxd6 28. Qh4 g6 29. gxf6 $16) 28. Qxg5 {[%emt 0:00:37]} Rxd6 {[%emt 0:00:01]} 29. Qh5 {[%emt 0:00:56]} h6 {[%emt 0:00:54]} 30. Qg4 {[%emt 0:04:13]} Kh7 {[%emt 0:02:51]} 31. Ree3 {[%emt 0:02:34] Strongly threatening Be5.} Qf7 {[%emt 0:01:05] [#]} (31... e5 $11 {keeps the balance.} 32. Qf5+ (32. Bxe5 $2 Rg6 $19) 32... g6) 32. Rhg3 {[%emt 0:02:20] White is more active.} (32. Be5 $1 $16) 32... e5 $1 {[%emt 0:01:28]} (32... Rd2 $2 33. Ref3 Qxf3+ 34. Rxf3 $18) 33. Ref3 {[%emt 0:01:29]} Rf6 {[%emt 0:00:45]} 34. Bxe5 {[%emt 0:01:08] Hoping for Rxf6.} Rxf3 {[%emt 0:00:09]} 35. Qxf3 {[%emt 0:00:47]} Qxf3+ {[%emt 0:03:05]} 36. Kxf3 {[%emt 0:00:05][%mdl 4096] Endgame KRB-KRB} g6 {[%emt 0:06:09]} 37. Kf4 {[%emt 0:00:24]} Be7 {[%emt 0:00:50]} 38. Rf3 {[%emt 0:01:05]} g5+ {[%emt 0:02:09]} 39. Kf5 {[%emt 0:00:33]} Rf8+ {[%emt 0:00:23]} 40. Kg4 {[%emt 0:00:00]} h5+ {[%emt 0:00:00]} 41. Kg3 {[%emt 0:00:11]} Rxf3+ {[%emt 0:02:37]} 42. Kxf3 {[%emt 0:00:05] KB-KB} Kg6 {[%emt 0:00:04]} 43. Bb2 {[%emt 0:05:25]} (43. h3 $11) 43... Bd8 {[%emt 0:04:16]} (43... g4+ $15 44. Kg2 Bf6) 44. h3 {[%emt 0:03:48] The position is equal.} Bc7 {[%emt 0:00:53]} 45. Bc3 {[%emt 0:04:43]} Bh2 {[%emt 0:02:35]} 46. Ke2 {[%emt 0:08:08]} Kf7 {[%emt 0:01:28]} 47. f3 {[%emt 0:00:35]} Bf4 {[%emt 0:00:52]} 48. Bd2 {[%emt 0:06:55]} Bxd2 {[%emt 0:03:52]} 49. Kxd2 {[%emt 0:00:05] KP-KP} Ke6 {[%emt 0:00:04]} 50. Ke2 {[%emt 0:00:46]} h4 {[%emt 0:00:36]} 51. Kd3 {[%emt 0:03:04]} Kd6 {[%emt 0:01:48]} 52. Kd2 {[%emt 0:01:12]} Ke5 {[%emt 0:01:00]} 53. Ke3 {[%emt 0:00:25]} c4 {[%emt 0:05:26]} 54. bxc4 {[%emt 0:00:44]} bxc4 {[%emt 0:00:01] K3P-K3P} 55. Kd2 {[%emt 0:00:13]} Kf4 {[%emt 0:00:01]} 56. Kc3 {[%emt 0:02:02]} Kxf3 {[%emt 0:00:01] K3P-KPP} 57. e5 {[%emt 0:00:09]} g4 {[%emt 0:00:01]} 58. e6 {[%emt 0:00:01] [#] Threatening mate with hxg4.} g3 {[%emt 0:00:29]} (58... gxh3 {gets mated.} 59. e7 h2 60. e8=Q Kg2 61. Qe4+ Kg1 62. Qg4+ Kf2 63. Qxh4+ Kg2 64. Qg4+ Kf2 65. Qh3) 59. e7 {[%emt 0:00:24]} g2 {[%emt 0:00:01]} 60. e8=Q {[%emt 0:00:35] White threatens Qe1 and mate.} g1=Q {[%emt 0:00:05] Prevents Qe1. White must now prevent ...Qc1+. KQ-KQ} 61. Qh5+ {[%emt 0:01:16]} Kg3 {[%emt 0:03:23]} 62. Qg4+ {[%emt 0:00:34]} Kh2 {[%emt 0:00:01] ...Qe3+ is the strong threat.} 63. Qxh4 {[%emt 0:00:25]} Qc1+ {[%emt 0:00:02]} 64. Kb4 {[%emt 0:00:40]} c3 {[%emt 0:00:36]} 65. Qf2+ {[%emt 0:00:15]} Kxh3 {[%emt 0:00:10] ( -> ...Qb2+)} 66. Qf3+ {[%emt 0:00:05]} Kh2 {[%emt 0:00:07]} 67. Qxc3 {[%emt 0:00:04]} Qxc3+ {[%emt 0:00:04]} 68. Kxc3 {[%emt 0:00:05] Weighted Error Value: White=0.15 (very precise) /Black=0.11 (very precise)} 1/2-1/2

[Event "Italian-ch Semifinal 2022"]
[Site "Acqui Terme"]
[Date "2022.06.18"]
[Round "8.5"]
[White "Genocchio, Daniele"]
[Black "Martorelli, Antonio"]
[Result "1-0"]
[ECO "A54"]
[WhiteElo "2365"]
[BlackElo "2141"]
[Annotator "TA"]
[PlyCount "47"]
[EventDate "2022.06.15"]
[EventType "swiss"]
[EventCountry "ITA"]
[SourceTitle "playchess.com"]
[Source "ChessBase"]
[SourceQuality "1"]
[TimeControl "40/5400+30:1800+30"]

{[%evp 12,47,27,39,22,30,32,39,28,32,37,23,99,112,114,19,57,43,70,34,42,33,28,29,78,87,102,93,121,128,203,191,1256,1238,29981,29982,29995,29996]} 1. c4 {[%emt 0:06:24]} Nf6 {[%emt 0:00:12]} 2. Nc3 {[%emt 0:00:20]} e5 {[%emt 0:00:15]} 3. Nf3 {[%emt 0:00:52]} d6 {[%emt 0:00:07]} 4. d4 {[%emt 0:08:01]} Nbd7 {[%emt 0:00:17]} 5. Bg5 {[%emt 0:04:57]} Be7 {[%emt 0:01:35]} 6. e3 {[%emt 0:00:42]} c6 {[%emt 0:03:23]} 7. Be2 {[%emt 0:04:33]} h6 {[%emt 0:00:38] A54: Old Indian Defence with Nf3, but without e4.} 8. Bh4 {[%emt 0:01:05]} O-O {[%emt 0:15:01]} 9. Qc2 {[%emt 0:09:10]} Nh5 {[%emt 0:06:39] White is slightly better.} 10. Bxe7 {[%emt 0:05:15]} Qxe7 {[%emt 0:01:39]} 11. g4 {[%emt 0:19:18] [#] Hoping for dxe5.} exd4 $146 {[%emt 0:04:03]} (11... Nhf6 $11 {remains equal.}) ({Predecessor:} 11... Nhf6 12. g5 hxg5 13. Nxg5 exd4 14. exd4 b5 15. cxb5 cxb5 16. Nd5 Qd8 17. Rg1 Bb7 {1-0 (37) Sundararajan,K (2526)-Kamble,V (2364) Gurgaon 2010}) 12. Nxd4 $16 {[%emt 0:00:11]} Nhf6 {[%emt 0:00:48]} 13. Rg1 {[%emt 0:05:35] White is more active.} (13. Nf5 $1 $16 {[%cal Rf5e7]} Qe5 14. f4) 13... Nc5 {[%emt 0:03:10]} 14. h4 {[%emt 0:05:10]} Nfe4 {[%emt 0:09:18] Inhibits g5.} 15. g5 {[%emt 0:00:03]} hxg5 {[%emt 0:03:52] Threatens to win with ...Nxc3.} 16. hxg5 {[%emt 0:00:03]} Nxc3 {[%emt 0:03:05]} ({Don't play} 16... Nxg5 17. O-O-O $11) 17. Qxc3 {[%emt 0:00:31]} Ne4 {[%emt 0:01:45]} (17... Bd7 $11) 18. Qc2 $1 {[%emt 0:04:52]} Re8 {[%emt 0:20:41][%cal Oe4f2] [#]} ({But not} 18... Nxg5 19. O-O-O $14) 19. Bd3 $1 {[%emt 0:00:21]} d5 {[%emt 0:05:17] [#]} 20. O-O-O $1 {[%emt 0:02:03] Strongly threatening g6.} c5 {[%emt 0:01:03]} (20... Bd7 $16) 21. Nf3 {[%emt 0:01:35]} dxc4 $2 {[%emt 0:04:57]} (21... b5) 22. Bxe4 $18 {[%emt 0:00:15][%mdl 64] Deflection} Qxe4 {[%emt 0:00:03]} 23. Qxe4 {[%emt 0:00:13]} Rxe4 {[%emt 0:00:14]} 24. Rd8+ {[%emt 0:21:01] Weighted Error Value: White=0.16 (very precise) /Black=0.69} 1-0